Cogmind - Beta 15 @@@ ROGUE MODE // 2025.06.09 @ 22:05:09 Player: the Result: Destroyed by P-70 Sage with High-powered Shock Rifle Performance ------------- Evolutions (5) 2500 Regions Visited (15) 3000 Robots Destroyed (330) 1650 Value Destroyed (11949) 11949 Prototype IDs (41) 820 Alien Tech Used (0) 0 Bonus (4562) 4562 TOTAL SCORE: 24481 Bonus ------- High Alert Combat Kills 1642 Follower Combat Kills 2883 Network Hubs Disabled 200 Met Data Miner 300 Built Enhanced Grunts 300 Met R17 at Cetus 500 Friendly Fire -1263 Cogmind --------- Core Integrity 0/1000 Matter 266/300 Energy 177/450 System Corruption 26% Temperature Cool (0) Movement Core (1500) Ox29 Location -5/Factory Parts ------- > --- POWER (1) -------- (None) > --- PROPULSION (4) --- (None) > --- UTILITY (8) ------ Huge Storage Unit Energy Well Light Regenerative Plating Graphene Brace > --- WEAPON (4) ------- (None) > --- INVENTORY (25) --- F-cell Engine Neutrino Core Quantum Reactor Advanced Heat Sink Experimental Heat Sink Energy Well (0) Experimental Targeting Computer Experimental Targeting Computer Weapon Cycler Transmission Jammer Experimental Phase Shifter Light Regenerative Plating Experimental Thermal Shield Improved Hardlight Generator Proton Cannon EMDS Improved Proton Missile Launcher Improved Plasma Cutter Peak State ------------ > --- POWER ------------ Quantum Reactor > --- PROPULSION ------- Centrium Heavy Treads Centrium Heavy Treads > --- UTILITY ---------- Cryofiber Web Experimental Heat Sink Experimental Heat Sink Huge Storage Unit Energy Well Experimental Targeting Computer Centrium Medium Armor Plating Experimental EM Shield > --- WEAPON ----------- Variable Charge Gun Enhanced Force Rifle Enhanced Force Rifle Neutron Cannon > --- INVENTORY -------- F-cell Engine F-cell Engine Neutrino Core Quantum Reactor Advanced Power Amplifier Advanced Power Amplifier Advanced Heat Sink Experimental Heat Sink Energy Well Experimental Targeting Computer Experimental Targeting Computer Weapon Cycler Transmission Jammer Experimental Phase Shifter Light Regenerative Plating Light Regenerative Plating Graphene Brace Experimental Thermal Shield Improved Hardlight Generator Proton Cannon EMDS Heavy Machine Gun Improved Proton Missile Launcher Improved Plasma Cutter [Rating: 136] Favorites ----------- Power Cooled Ion Engine Engine Cooled Ion Engine Power Core Fission Core Reactor Quantum Reactor Propulsion Light Treads Treads Light Treads Wheel Armored Huge Wheel Utility Large Storage Unit Device Cryofiber Web Storage Large Storage Unit Processor Visual Processing Unit Protection Heavy Armor Plating Weapon Thermic Laser Energy Gun Thermic Laser Energy Cannon Advanced Beam Cannon Ballistic Gun Advanced KE Penetrator Ballistic Cannon Mini Assault Cannon Launcher Rocket Launcher Special Weapon Mining Laser Build | -11 -10 -9 -9 -8 -7 -7 -7 -7 -6 -6 -6 -6 -6 -6 -5 ------- Run | Yrd Mat Mat Min Mat Fac Low Low Dat Pro Fac Ext Cet Arc Hub Fac Slots Evolved 10 | . . 2 . 2 2 . . . . 2 . . . . 2 Power . | . . . . . . . . . . . . . . . . Propulsion 2 | . . . . 1 . . . . . 1 . . . . . Utility 6 | . . 2 . 1 1 . . . . 1 . . . . 1 Weapon 2 | . . . . . 1 . . . . . . . . . 1 Parts Attached 202 | 7 9 28 3 17 49 2 1 . 2 5 29 17 . 22 11 Power 20 | 1 1 3 . 1 4 . . . . 1 6 2 . 1 . Engine 14 | 1 1 3 . 1 4 . . . . . 4 . . . . Core 3 | . . . . . . . . . . 1 2 . . . . Reactor 3 | . . . . . . . . . . . . 2 . 1 . Propulsion 31 | 2 1 6 1 5 10 . . . . 1 1 3 . 1 . Treads 24 | 2 1 6 1 5 5 . . . . . . 3 . 1 . Leg . | . . . . . . . . . . . . . . . . Wheel 7 | . . . . . 5 . . . . 1 1 . . . . Hover . | . . . . . . . . . . . . . . . . Flight . | . . . . . . . . . . . . . . . . Utility 91 | 2 4 11 1 7 20 2 1 . 2 3 13 7 . 12 6 Device 52 | 1 . 2 . 4 18 1 . . 1 . 10 5 . 7 3 Storage 10 | 1 1 1 . . . 1 1 . 1 . 1 1 . . 2 Processor 6 | . . 2 1 . 1 . . . . 1 . . . 1 . Hackware . | . . . . . . . . . . . . . . . . Protection 23 | . 3 6 . 3 1 . . . . 2 2 1 . 4 1 Artifact . | . . . . . . . . . . . . . . . . Weapon 60 | 2 3 8 1 4 15 . . . . . 9 5 . 8 5 Energy Gun 20 | . . 1 . 2 7 . . . . . 3 1 . 3 3 Energy Cannon 16 | . . 2 . 1 2 . . . . . 4 1 . 5 1 Ballistic Gun 6 | 2 . . . . 1 . . . . . 1 1 . . 1 Ballistic Cannon 11 | . 3 3 . . 4 . . . . . 1 . . . . Launcher 6 | . . 2 . 1 1 . . . . . . 2 . . . Special Weapon 1 | . . . 1 . . . . . . . . . . . . Impact Weapon . | . . . . . . . . . . . . . . . . Slashing Weapon . | . . . . . . . . . . . . . . . . Piercing Weapon . | . . . . . . . . . . . . . . . . Special Melee Weapon . | . . . . . . . . . . . . . . . . Unidentified Prototypes 21 | . . 2 . 1 4 . . . . . 1 4 . 8 1 Corrupted Parts 4 | . . . . . . . . . . . 1 . . 3 . System Corruption 18 | . . . . . . . . . . . 2 . . 16 . Parts Lost 47 | . . . . 2 14 . 1 . . . 1 1 . 11 17 Power 5 | . . . . . 2 . . . . . . . . 1 2 Propulsion 9 | . . . . . 3 . . . . . 1 1 . 2 2 Utility 17 | . . . . 1 5 . 1 . . . . . . 2 8 Weapon 16 | . . . . 1 4 . . . . . . . . 6 5 Highest Loss Streak 16 | . . . . 2 3 . 1 . . . 1 1 . 2 16 To Critical Strikes 1 | . . . . . . . . . . . 1 . . . . Average Backups 15 | 4 12 14 14 13 14 13 12 13 13 13 19 22 22 21 23 Power 1 | . 1 1 2 2 1 1 1 2 2 1 2 3 3 3 3 Propulsion 2 | 2 5 4 4 2 . 1 1 1 1 . . 2 2 1 . Utility 5 | . 1 2 2 4 5 5 4 4 4 4 8 9 10 12 15 Weapon 6 | 1 5 6 6 4 5 6 6 6 6 6 7 7 7 4 3 Tool/Special . | . . . . . . . . . . . . . . . . Unused Backups 75 | . 6 21 3 3 14 . . . . 1 6 5 . 4 12 Power 11 | . . 2 1 . 1 . . . . 1 2 1 . . 3 Propulsion 9 | . 4 1 . . 2 . . . . . . 2 . . . Utility 25 | . . 1 1 2 8 . . . . . 2 1 . 3 7 Weapon 29 | . 2 17 1 1 3 . . . . . 2 1 . 1 1 Tool/Special 1 | . . . . . . . . . . . . . . . 1 Average Slot Usage (%) 89 | . 99 90 88 96 95 92 91 92 92 79 79 84 86 83 84 Engine 6 | . 14 11 11 9 6 7 7 7 7 . 4 . . . . Treads 13 | . 27 22 22 27 14 . . . . . . 3 13 12 10 Wheel 4 | . . . . . 3 15 15 15 15 12 12 9 . . . Device 21 | . 11 4 11 26 36 38 37 38 38 21 24 26 26 21 16 Storage 9 | . 14 11 11 9 7 7 7 7 7 6 6 12 13 12 11 Processor 2 | . . 9 . . . . . . . . . . . 5 4 Protection 6 | . 2 10 11 5 1 . . . . 10 7 6 6 5 9 Energy Gun 5 | . . . . 10 18 . . . . . 4 5 6 5 6 Energy Cannon 6 | . . 6 17 7 2 . . . . . 8 13 13 7 11 Ballistic Gun 1 | . 9 . . . . . . . . . 2 . . 3 2 Ballistic Cannon 6 | . 18 15 . . 1 23 23 23 23 20 4 . . . . Peak Build Rating 136 | 7 8 24 26 35 56 54 51 51 52 66 83 116 116 129 136 Average Rating 52 | 5 7 19 24 29 49 49 50 51 51 64 75 90 116 117 125 On Entrance 52 | . 7 8 23 26 32 54 49 51 51 52 66 78 116 116 118 Naked Turns . | . . . . . . . . . . . . . . . . Heaviest Build 171 | 15 34 54 53 55 75 51 51 48 48 70 171 159 155 156 149 Greatest Support 160 | 40 40 40 48 70 72 44 44 44 44 56 56 160 160 160 160 Greatest Overweight (x) 28 | . . 1 1 . 7 1 1 1 1 1 5 5 . 1 28 Average Overweight (x) . | . . . 1 . . 1 1 1 1 1 1 1 . . . Largest Inventory Capacity 25 | 8 15 15 15 15 15 15 15 15 15 15 25 25 25 25 25 Average Capacity 17 | 7 14 15 15 15 15 15 15 15 15 15 21 25 25 25 25 Most Carried 25 | 6 15 15 15 15 15 15 15 15 15 15 25 25 25 25 25 Average Carried 16 | 4 13 14 14 13 14 15 14 15 15 14 20 24 25 24 24 Final Capacity 25 | 8 15 15 15 15 15 15 15 15 15 15 25 25 25 25 25 Final Carried 25 | 6 14 15 15 15 15 15 15 15 15 14 25 25 25 25 19 Class Distribution -------------------- 37% | Mutant 14% | Scavenger-Tank 11% | Tank 10% | Scavenger-Skirmisher 10% | Commander-Tank 8% | Scavenger-Gunner Dominant Class ---------------- Mutant | -10/Materials Mutant | -9/Materials Mutant | -9/Mines Mutant | -8/Materials Scavenger-Skirmisher | -7/Factory Scavenger-Gunner | -7/Lower Caves Scavenger-Gunner | -7/Lower Caves Scavenger-Gunner | -7/Data Miner Scavenger-Gunner | -6/Proximity Caves Tank | -6/Factory Commander-Tank | -6/Extension Commander-Tank | -6/Cetus Scavenger-Tank | -6/Archives Scavenger-Tank | -6/Hub_04(d) Scavenger-Tank | -5/Factory Resources | -11 -10 -9 -9 -8 -7 -7 -7 -7 -6 -6 -6 -6 -6 -6 -5 ----------- Run | Yrd Mat Mat Min Mat Fac Low Low Dat Pro Fac Ext Cet Arc Hub Fac Matter Collected 7394 | 360 461 1342 91 247 1065 259 210 . 163 355 1216 235 . 1263 127 Remotely 1633 | . . . . . . 259 210 . 163 355 646 . . . . Salvage Created 14097 | 181 702 1657 407 891 4144 64 109 . 60 157 2085 26 . 3145 469 Parts 674 | 12 46 118 30 56 145 3 4 . 1 2 58 1 . 167 31 Haulers Intercepted 26 | . 2 6 . 1 4 . . . . . 7 . . 6 . Recyclers Shooed 3 | . . . 1 . . . . . . 2 . . . . . Parts Field Recycled . | . . . . . . . . . . . . . . . . Retrieved Matter . | . . . . . . . . . . . . . . . . Parts Self-Destructed 14 | . . . . . . 3 4 . 7 . . . . . . Prevented . | . . . . . . . . . . . . . . . . Kills | -11 -10 -9 -9 -8 -7 -7 -7 -7 -6 -6 -6 -6 -6 -6 -5 ------- Run | Yrd Mat Mat Min Mat Fac Low Low Dat Pro Fac Ext Cet Arc Hub Fac Combat Hostiles Destroyed 226 | . 14 40 5 18 71 2 3 . 2 6 20 . . 37 8 Guns 81 | . 5 . . 7 40 . . . . . 3 . . 21 5 Cannons 100 | . 9 33 5 6 7 2 3 . 2 5 15 . . 13 . AOE 26 | . . 7 . 4 9 . . . . 1 . . . 2 3 Classes Destroyed 20 | 2 6 4 . 2 3 . . . . . . . . 3 . Worker 15 | . 1 6 3 . 3 . . . . 1 . . . 1 . Builder 16 | . . 1 3 . 6 . . . . . 6 . . . . Tunneler 12 | 4 . . 5 . 2 . . . . . 1 . . . . Hauler 26 | . 2 6 . 1 4 . . . . . 7 . . 6 . Recycler 12 | 1 2 1 . . 4 . . . . . 1 . . 2 1 Carrier 1 | . . . . . 1 . . . . . . . . . . Operator 4 | . 1 . . . 1 . . . . . 1 . . 1 . Watcher 13 | . 2 5 . 1 2 . . . . . . 1 . 2 . Swarmer 34 | . 3 7 . 4 12 . . . . . . . . 4 4 Cutter 3 | . . . . . . . . . . . . . . 3 . Grunt 102 | . 11 21 3 5 37 . 3 . 1 3 13 . . 5 . Brawler 2 | . . 1 . . . . . . . . 1 . . . . Duelist 4 | . . 1 2 . . . . . . . 1 . . . . Protector 3 | . . . . . . . . . . . . . . 2 1 Sentry 36 | . . 10 . 6 6 1 . . 1 1 5 . . 6 . Specialist 4 | . . . . 2 . . . . . . . . . 2 . Hunter 2 | . . . . . 2 . . . . . . . . . . Programmer 25 | . . . . . 14 1 . . . 2 . . . 5 3 Heavy 2 | . . . . 1 . . . . . . . . . 1 . Behemoth 1 | . . . . . . . . . . . . . . 1 . Enhanced Grunt 2 | . . . . . . . . . . 1 . . . 1 . Lightning 8 | . . . . . . . . . . . . . . 8 . Thug 2 | . . . . . . . . . . . 1 . . 1 . Butcher 1 | . . . . . . . . . . . 1 . . . . Best Kill Streak 12 | 2 6 9 3 5 12 1 3 . 1 3 6 1 . 9 4 Combat Bots Only 12 | . 5 5 3 5 12 1 3 . 1 3 5 . . 7 4 Max Kills in Single Turn 5 | 1 1 5 1 3 2 1 1 . 1 2 1 1 . 2 4 Gunslinging 1 | . . . . . 1 . . . . . . . . . . Exploded 4 | . . 4 . 3 2 . . . . 1 . . . 1 3 Melee . | . . . . . . . . . . . . . . . . Uniques/NPCs Destroyed . | . . . . . . . . . . . . . . . . Combat | -11 -10 -9 -9 -8 -7 -7 -7 -7 -6 -6 -6 -6 -6 -6 -5 -------- Run | Yrd Mat Mat Min Mat Fac Low Low Dat Pro Fac Ext Cet Arc Hub Fac Hostile Shots Fired 1733 | . 59 116 8 90 406 22 15 . 3 54 249 18 . 307 386 Missed 520 | . 20 40 2 22 135 10 5 . 1 18 103 9 . 74 81 Hits 1213 | . 39 76 6 68 271 12 10 . 2 36 146 9 . 233 305 Melee 1 | . . . . . . . . . . . . . . 1 . Projectile 1212 | . 39 76 6 68 271 12 10 . 2 36 146 9 . 232 305 AOE 5 | . . . . . . . . . . . 2 . . 3 . Critical Strikes 48 | . . 2 . 2 8 . 2 . . 1 2 . . 14 17 Actively Blocked 8 | . . . . . . . . . . . . . . 2 6 Part Disruptions 2 | . . . . . . . . . . . . . . 2 . Damage Taken 17244 | . 420 1029 69 1313 3582 130 170 . 58 605 967 128 17 5077 3679 Core 2421 | . 67 62 11 186 467 16 48 . 30 19 96 12 . 404 1003 Absorbed by Shields 818 | . . . . . . . . . . . 594 91 5 128 . Reduced by Siege Mode 453 | . . . . . . . . . . . . . . 336 117 Redirected to Shielding 6 | . 6 . . . . . . . . . . . . . . Ignored by Resistances 3288 | . . . . 58 29 . . . . . 186 22 . 763 2230 Regen/Repaired (Parts) 570 | . 152 25 . . 157 . . . . 29 48 . . 154 5 Core Remaining (%) 62 | 100 73 . 81 66 . . . . 19 . . . . 37 . Volleys Fired 876 | 15 62 124 32 69 208 5 9 . 7 26 115 14 5 162 23 Largest 4 | 2 2 2 2 2 3 3 3 . 3 3 3 3 3 3 4 Hottest 410 | 40 60 136 136 136 255 120 120 . 120 120 256 266 256 410 327 Shots Fired 2022 | 30 121 240 61 128 534 15 27 . 21 73 304 41 8 352 67 Gun 1013 | 30 62 . . 75 428 . . . . . 100 11 4 249 54 Cannon 989 | . 59 237 60 51 94 15 27 . 21 73 204 30 4 101 13 Launcher 20 | . . 3 1 2 12 . . . . . . . . 2 . Special . | . . . . . . . . . . . . . . . . Kinetic 726 | 30 121 216 . . 35 15 27 . 21 73 99 . . 85 4 Thermal 1200 | . . 21 60 126 487 . . . . . 163 35 4 241 63 Explosive 6 | . . 3 1 2 . . . . . . . . . . . Electromagnetic 90 | . . . . . 12 . . . . . 42 6 4 26 . Robot Hit Streak 29 | 10 10 12 13 18 18 7 7 . 4 8 13 9 2 20 29 Robot Miss Streak 6 | 3 5 4 2 2 6 2 4 . 2 4 6 4 3 3 2 Penetration Max 1 | . . . . . . . . . . . . . . 1 . Secondary Targets 8 | . . . . . 5 . . . . . . . . 2 1 Max Gunslinging Chain 1 | . . . . . 1 . . . . . . . . 1 1 Shots Hit Robots 1257 | 18 71 129 40 80 338 7 11 . 11 43 180 24 5 245 55 Core Hits 525 | 6 31 66 17 33 145 3 5 . 4 11 71 12 1 100 20 Critical Kills 11 | . . . . . 1 . . . . . . . . 8 2 Critical Parts Destroyed 10 | . . . . . . . . . . . . . . 5 5 Critical Strikes 109 | . 1 4 . 4 51 . . . 1 2 16 . 1 21 8 Burn 65 | . . . . 4 50 . . . . . 7 . . 4 . Meltdown 1 | . . . . . 1 . . . . . . . . . . Destroy 21 | . . . . . . . . . . . . . . 13 8 Blast 16 | . 1 4 . . . . . . 1 2 8 . . . . Corrupt 6 | . . . . . . . . . . . 1 . 1 4 . Melee Attacks . | . . . . . . . . . . . . . . . . Impact . | . . . . . . . . . . . . . . . . Slashing . | . . . . . . . . . . . . . . . . Piercing . | . . . . . . . . . . . . . . . . Sneak Attacks . | . . . . . . . . . . . . . . . . Combat Hostiles . | . . . . . . . . . . . . . . . . Follow-up Attacks . | . . . . . . . . . . . . . . . . Damage Inflicted 34665 | 256 1052 2998 931 1740 8436 230 318 . 321 1560 5623 770 143 8292 1995 Guns 15152 | 256 578 . . 1006 5704 . . . . . 1530 185 77 4486 1330 Cannons 16158 | . 474 2403 886 550 1269 230 318 . 321 1354 4093 585 66 3146 463 Explosions 3350 | . . 595 45 184 1463 . . . . 206 . . . 655 202 Melee . | . . . . . . . . . . . . . . . . Ramming 5 | . . . . . . . . . . . . . . 5 . Kinetic 9733 | 256 1052 2259 . . 460 230 318 . 321 1354 1742 . . 1657 84 Thermal 20617 | . . 144 886 1556 6703 . . . . 206 2943 682 77 5509 1911 Explosive 967 | . . 595 45 184 143 . . . . . . . . . . Electromagnetic 3343 | . . . . . 1130 . . . . . 938 88 66 1121 . Impact . | . . . . . . . . . . . . . . . . Slashing . | . . . . . . . . . . . . . . . . Piercing . | . . . . . . . . . . . . . . . . Highest Corruption 56 | . 1 . . . 3 3 3 3 3 2 4 . . 56 23 Average Corruption 8 | . 1 . . . 2 3 3 3 3 1 2 . . 28 9 Corruption Purged 6 | . . . . . 2 . . . . . 4 . . . . Corruption Blocked . | . . . . . . . . . . . . . . . . Effects 234 | . 6 . . . 61 14 5 2 9 8 9 . . 116 4 Message Errors 48 | . 2 . . . 13 3 2 . 2 1 3 . . 22 . Matter Fused 57 | . 1 . . . 12 2 2 1 2 2 . . . 32 3 Heat Flow Errors 21 | . . . . . 8 1 . . 1 2 2 . . 6 1 Energy Discharges 28 | . 1 . . . 7 2 . 1 1 1 2 . . 13 . Parts Rejected 3 | . . . . . 1 . . . . . . . . 2 . Parts Fused 6 | . 1 . . . . . . . 1 . . . . 4 . Data Loss (minor) 26 | . 1 . . . 7 3 1 . 2 1 1 . . 10 . Data Loss (major) 6 | . . . . . 3 1 . . . . . . . 2 . Misfires 10 | . . . . . 4 2 . . . . . . . 4 . Alerts 5 | . . . . . 3 . . . . . . . . 2 . Misdirections 1 | . . . . . . . . . . . . . . 1 . Weapon Failures 23 | . . . . . 3 . . . . 1 1 . . 18 . Overload Shots 3 | . . . . . . . . . . . . . . 3 . Overflow Damage 585 | . 13 49 27 10 42 . . . . 176 64 . . 204 . Projectiles 407 | . 13 19 27 . 42 . . . . 88 64 . . 154 . Explosions 178 | . . 30 . 10 . . . . . 88 . . . 50 . Melee . | . . . . . . . . . . . . . . . . Knockbacks 52 | . 4 11 . . 6 1 3 . 1 12 14 . . . . Impact . | . . . . . . . . . . . . . . . . Kinetic 47 | . 4 11 . . 5 1 3 . 1 11 11 . . . . Secondary 5 | . . . . . 1 . . . . 1 3 . . . . Self-Inflicted Damage 443 | . . 61 . . 107 . . . . . . . . 182 93 Shots 11 | . . 1 . . 5 . . . . . . . . 3 2 Rammed 1 | . . . . . . . . . . . . . . 1 . Targets Rammed 1 | . . . . . . . . . . . . . . 1 . Kicked . | . . . . . . . . . . . . . . . . Crushed . | . . . . . . . . . . . . . . . . Highest Temperature 495 | . 66 111 72 168 232 194 15 . 126 213 346 . 75 495 156 Average Temperature 50 | . 21 25 26 43 71 116 10 . 72 36 92 . 42 208 45 Received Heat Transfer 3452 | . 189 429 36 486 1134 24 126 . 24 210 376 9 7 402 . Effects 5 | . . . . . . . . . . . 3 . . 2 . Energy Bleed 2 | . . . . . . . . . . . 1 . . 1 . Interference 1 | . . . . . . . . . . . 1 . . . . Damage (minor) 1 | . . . . . . . . . . . 1 . . . . Damage (major) 1 | . . . . . . . . . . . . . . 1 . Siege Activations 11 | . . . . . . . . . . . . . . 10 1 Total Turns 393 | . . . . . . . . . . . . . . 358 35 Longest Duration 84 | . . . . . . . . . . . . . . 84 35 Martial Activations . | . . . . . . . . . . . . . . . . Shielding Activations . | . . . . . . . . . . . . . . . . Robots Disrupted 2 | . . . . . 2 . . . . . . . . . . Combat Hostiles 1 | . . . . . 1 . . . . . . . . . . Robots Corrupted 4 | . . . . . 1 . . . . . 2 . . 1 . Combat Hostiles 1 | . . . . . . . . . . . . . . 1 . Parts Fried 16 | . . . . . 5 . . . . . 4 . . 7 . Impact Corruptions 1 | . . . . . . . . . . . 1 . . . . Robots Melted 21 | . . . . 1 16 . . . . . 4 . . . . Combat Hostiles 18 | . . . . 1 15 . . . . . 2 . . . . Parts Melted 109 | . . . 1 7 77 . . . . . 17 1 . 3 3 Heat Transferred 37913 | . . 259 1591 3219 20091 . . . . 150 5575 1096 111 4623 1198 Parts Sabotaged . | . . . . . . . . . . . . . . . . Parts Stolen . | . . . . . . . . . . . . . . . . Parts Stripped . | . . . . . . . . . . . . . . . . Power Chain Reactions 7 | . . . . . 2 . . . . . . . . 5 . Alert | -11 -10 -9 -9 -8 -7 -7 -7 -7 -6 -6 -6 -6 -6 -6 -5 ------- Run | Yrd Mat Mat Min Mat Fac Low Low Dat Pro Fac Ext Cet Arc Hub Fac Maximum Alert Level 5 | . 1 1 . 1 5 . . . . 1 4 3 2 3 2 Low Security (%) 52 | 100 98 46 100 89 31 . . . . 88 51 . . 30 19 Level 1 21 | . 1 53 . 10 14 . . . . 11 17 . 3 24 78 Level 2 9 | . . . . . 16 . . . . . 8 . 96 29 2 Level 3 10 | . . . . . 17 . . . . . 13 100 . 16 . Level 4 3 | . . . . . 10 . . . . . 8 . . . . Level 5 2 | . . . . . 8 . . . . . . . . . . High Security . | . . . . . . . . . . . . . . . . Max Security . | . . . . . . . . . . . . . . . . Peak Influence 1888 | 10 204 315 110 228 1888 . . . . 234 1504 1063 543 743 400 Initial 841 | . . 51 110 2 54 . . . . 150 88 841 390 158 357 Average 327 | 2 103 197 10 112 592 . . . . 144 377 927 483 359 285 Influence Increases 11015 | 25 485 1241 222 548 2527 50 70 . 149 514 2438 446 193 1759 348 Destroy 0b10 Robot/C 5680 | . 280 800 120 360 1440 40 60 . 100 180 1100 220 80 760 140 Destroy 0b10 Robot/NC 580 | 25 40 95 55 10 110 . . . 10 5 120 10 . 90 10 Destroy Leader 1270 | . 78 242 20 104 352 10 10 . 10 50 146 10 . 238 . Allied During Kill 1344 | . . . 1 . . . . . 29 34 902 189 80 109 . Successful Hack 290 | . 12 24 . . 146 . . . . 5 24 8 . 40 31 Disable Machine 870 | . 30 45 . 15 210 . . . . 60 45 . 30 300 135 Destroy Structure 501 | . . 35 11 29 89 . . . . 30 56 9 3 207 32 Advance Influence 150 | . . . . . . . . . . 150 . . . . . Lose Combat Pursuer 330 | . 45 . 15 30 180 . . . . . 45 . . 15 . Influence Decreases 10766 | 25 363 1079 499 434 760 994 420 594 149 334 1114 975 715 1483 828 Entered New Map 3798 | . . 71 174 5 67 700 180 594 . . 92 663 585 295 372 Time Decay 5337 | 25 363 719 325 297 553 294 230 . 149 334 692 302 110 658 286 Lost Part 470 | . . . . 20 140 . 10 . . . 10 10 . 110 170 Lost Ally 460 | . . . . . . . . . . . 320 . 20 120 . Purge Threat 701 | . . 289 . 112 . . . . . . . . . 300 . Squads Dispatched 75 | . 4 6 . 6 31 . . . . 5 7 1 . 12 3 Investigation 16 | . 2 4 . 1 5 . . . . 2 . 1 . . 1 Extermination 18 | . . . . . 10 . . . . 2 . . . 5 1 Reinforcement 26 | . 2 2 . 4 7 . . . . 1 4 . . 5 1 Assault 10 | . . . . . 5 . . . . . 3 . . 2 . Garrison 5 | . . . . 1 4 . . . . . . . . . . Intercept . | . . . . . . . . . . . . . . . . Searches Triggered . | . . . . . . . . . . . . . . . . Data Miner Redirects 3 | . . . . . . . . . . . 1 . . 1 1 Construction Impeded 7 | . . 1 . . 3 . . . . 1 1 . . 1 . Haulers Reinforced 2 | . . . . . 2 . . . . . . . . . . Active Scanning Responses . | . . . . . . . . . . . . . . . . Cargo Convoy Interrupts 1 | . . . . . . . . . . . . . . . 1 Stealth | -11 -10 -9 -9 -8 -7 -7 -7 -7 -6 -6 -6 -6 -6 -6 -5 --------- Run | Yrd Mat Mat Min Mat Fac Low Low Dat Pro Fac Ext Cet Arc Hub Fac Distress Signals 20 | . 3 4 . 2 . . . . . 1 3 2 . 5 . Communications Jammed 1 | . . . . . 1 . . . . . . . . . . Distress Signals 1 | . . . . . 1 . . . . . . . . . . Times Spotted 358 | . 21 50 7 26 93 2 3 . 7 10 65 11 3 44 16 Peak Tracking Total 12 | . 5 4 3 6 6 1 3 . 4 4 7 5 2 7 12 Tactical Retreats 14 | . 2 . 1 1 6 . . . . . 3 . . 1 . Traps | -11 -10 -9 -9 -8 -7 -7 -7 -7 -6 -6 -6 -6 -6 -6 -5 ------- Run | Yrd Mat Mat Min Mat Fac Low Low Dat Pro Fac Ext Cet Arc Hub Fac Traps Triggered 19 | . 1 3 . . 8 . . . . . 5 . . 2 . Indirectly 3 | . . . . . 3 . . . . . . . . . . Trap Hack Attempts . | . . . . . . . . . . . . . . . . Triggered . | . . . . . . . . . . . . . . . . Disarmed . | . . . . . . . . . . . . . . . . Reprogrammed . | . . . . . . . . . . . . . . . . Reused . | . . . . . . . . . . . . . . . . Traps Extracted . | . . . . . . . . . . . . . . . . Installed . | . . . . . . . . . . . . . . . . Triggered . | . . . . . . . . . . . . . . . . Machines | -11 -10 -9 -9 -8 -7 -7 -7 -7 -6 -6 -6 -6 -6 -6 -5 ---------- Run | Yrd Mat Mat Min Mat Fac Low Low Dat Pro Fac Ext Cet Arc Hub Fac Machines Disabled 59 | . 2 3 . 1 14 . . . . 4 4 . 2 20 9 Max in Single Turn 11 | . 1 1 . 1 4 . . . . 3 1 . . 11 9 Network Hub 1 | . . . . . . . . . . . . . . 1 . Machines Repaired . | . . . . . . . . . . . . . . . . Machines Dismantled . | . . . . . . . . . . . . . . . . Machines Sabotaged . | . . . . . . . . . . . . . . . . Overloaded Fab Kills . | . . . . . . . . . . . . . . . . Hacking | -11 -10 -9 -9 -8 -7 -7 -7 -7 -6 -6 -6 -6 -6 -6 -5 --------- Run | Yrd Mat Mat Min Mat Fac Low Low Dat Pro Fac Ext Cet Arc Hub Fac Machines Accessed 75 | . 6 13 1 2 22 . 1 4 . 2 8 3 1 10 2 Terminals 48 | . 5 11 . 1 10 . . . . . 7 3 . 10 1 Fabricators 7 | . . . . . 4 . . . . 2 . . . . 1 Repair Stations 4 | . 1 1 . . 2 . . . . . . . . . . Recycling Units 2 | . . . . . 1 . . . . . 1 . . . . Scanalyzers 4 | . . 1 . . 3 . . . . . . . . . . Garrison Access 3 | . . . . 1 2 . . . . . . . . . . Total Hacks 243 | . 21 38 1 4 51 . 2 28 . 6 20 9 25 34 4 Successful 135 | . 12 14 1 2 21 . 2 28 . 4 9 1 25 13 3 Failed 108 | . 9 24 . 2 30 . . . . 2 11 8 . 21 1 Catastrophic 24 | . 3 2 . 1 7 . . . . 1 3 1 . 6 . Database Lockouts . | . . . . . . . . . . . . . . . . Manual 53 | . 7 15 . . 7 . . . . . 11 2 . 11 . Terminals 131 | . 14 33 . 2 18 . . . . . 19 9 . 34 2 Fabricators 19 | . . . . . 11 . . . . 6 . . . . 2 Repair Stations 17 | . 7 2 . . 8 . . . . . . . . . . Recycling Units 2 | . . . . . 1 . . . . . 1 . . . . Scanalyzers 13 | . . 3 . . 10 . . . . . . . . . . Garrison Access 5 | . . . . 2 3 . . . . . . . . . . Terminal Hacks 89 | . 4 8 1 2 3 . 2 28 . . 5 1 25 9 1 Record 39 | . . . . . . . 2 11 . . . 1 25 . . Part Schematic 11 | . . . . . . . . 10 . . . . . 1 . Robot Schematic 4 | . . . . . . . . 4 . . . . . . . Robot Analysis 1 | . . . . . 1 . . . . . . . . . . Prototype ID Bank 8 | . . 2 . . . . . 3 . . 2 . . 1 . Open Door 1 | . . . 1 . . . . . . . . . . . . Branch Access Points 1 | . . . . . . . . . . . . . . . 1 Terminal Index 2 | . . . . . 1 . . . . . 1 . . . . Alert Level 5 | . . 1 . . . . . . . . 1 . . 3 . Unreport Threat 6 | . . 2 . 2 . . . . . . . . . 2 . Hauler Manifests 1 | . . . . . . . . . . . 1 . . . . Registered Components 2 | . 1 . . . . . . . . . . . . 1 . Zone Layout 8 | . 3 3 . . 1 . . . . . . . . 1 . Fabricator Hacks 13 | . . . . . 7 . . . . 4 . . . . 2 Network Status 1 | . . . . . 1 . . . . . . . . . . Load Schematic 6 | . . . . . 3 . . . . 2 . . . . 1 Build 6 | . . . . . 3 . . . . 2 . . . . 1 Repair Station Hacks 14 | . 7 2 . . 5 . . . . . . . . . . Scan Component 8 | . 4 1 . . 3 . . . . . . . . . . Repair 6 | . 3 1 . . 2 . . . . . . . . . . Recycling Unit Hacks . | . . . . . . . . . . . . . . . . Scanalyzer 6 | . . 2 . . 4 . . . . . . . . . . Insert Component 3 | . . 1 . . 2 . . . . . . . . . . Analyze 3 | . . 1 . . 2 . . . . . . . . . . Garrison Access Hacks . | . . . . . . . . . . . . . . . . Unauthorized Hacks 13 | . 1 2 . . 2 . . . . . 4 . . 4 . Terminals 11 | . 1 2 . . 1 . . . . . 3 . . 4 . Botnet 9 | . 1 2 . . 1 . . . . . 2 . . 3 . Operators 2 | . . . . . . . . . . . 1 . . 1 . Fabricators . | . . . . . . . . . . . . . . . . Repair Stations . | . . . . . . . . . . . . . . . . Recycling Units 2 | . . . . . 1 . . . . . 1 . . . . Mask 2 | . . . . . 1 . . . . . 1 . . . . Scanalyzers . | . . . . . . . . . . . . . . . . Garrison Access . | . . . . . . . . . . . . . . . . Data Cores Recovered 3 | . 1 . . . . . . . . . 1 . . 1 . Used . | . . . . . . . . . . . . . . . . Hacking Detections 64 | . 5 11 . 2 22 . . . . 2 8 3 . 10 1 Full Trace Events 14 | . 1 3 . 1 5 . . . . 2 . 1 . . 1 Feedback Events 1 | . 1 . . . . . . . . . . . . . . Corruption 1 | . 1 . . . . . . . . . . . . . . Feedback Blocked . | . . . . . . . . . . . . . . . . Robot Schematics Acquired 4 | . . . . . . . . 4 . . . . . . . Robots Built . | . . . . . . . . . . . . . . . . Authchips . | . . . . . . . . . . . . . . . . Time . | . . . . . . . . . . . . . . . . Total Robot Build Rating . | . . . . . . . . . . . . . . . . Part Schematics Acquired 14 | . . 1 . . 2 . . 10 . . . . . 1 . Parts Built 8 | . . . . . 6 . . . . 2 . . . . . Authchips . | . . . . . . . . . . . . . . . . Time 523 | . . . . . 200 . . . . 228 . . . . 95 Total Part Build Rating 44 | . . . . . 34 . . . . 10 . . . . . Parts Repaired 6 | . 3 1 . . 2 . . . . . . . . . . Time 214 | . 78 51 . . 85 . . . . . . . . . . Parts Recycled . | . . . . . . . . . . . . . . . . Recycled Matter . | . . . . . . . . . . . . . . . . Retrieved Matter . | . . . . . . . . . . . . . . . . Retrieved Components . | . . . . . . . . . . . . . . . . Parts Scanalyzed 3 | . . 1 . . 2 . . . . . . . . . . Part Schematics Acquired 3 | . . 1 . . 2 . . . . . . . . . . Parts Damaged . | . . . . . . . . . . . . . . . . Bothacking | -11 -10 -9 -9 -8 -7 -7 -7 -7 -6 -6 -6 -6 -6 -6 -5 ------------ Run | Yrd Mat Mat Min Mat Fac Low Low Dat Pro Fac Ext Cet Arc Hub Fac Used RIF Installer . | . . . . . . . . . . . . . . . . Robots Hacked . | . . . . . . . . . . . . . . . . Non-combat . | . . . . . . . . . . . . . . . . Combat . | . . . . . . . . . . . . . . . . Robot Hacks Applied . | . . . . . . . . . . . . . . . . Relay Couplers Released . | . . . . . . . . . . . . . . . . Fabnet Peak Effective % . | . . . . . . . . . . . . . . . . Robots Rewired 16 | . . . . . . . . . . . 16 . . . . Allies Hacked . | . . . . . . . . . . . . . . . . Hacks Repelled . | . . . . . . . . . . . . . . . . Allies | -11 -10 -9 -9 -8 -7 -7 -7 -7 -6 -6 -6 -6 -6 -6 -5 -------- Run | Yrd Mat Mat Min Mat Fac Low Low Dat Pro Fac Ext Cet Arc Hub Fac Total Allies 35 | . . . 1 . . . . . 1 . 28 5 . . . Largest Group 21 | . . . 1 . . . . . 1 1 21 9 9 7 . Highest-Rated Group 764 | . . . 31 . . . . . 96 96 764 731 723 536 . Highest-Rated Ally 159 | . . . 31 . . . . . 96 96 159 153 153 96 . Total Orders 4 | . . . . . . . . . . . . . . 4 . STAY 1 | . . . . . . . . . . . . . . 1 . FOLLOW 1 | . . . . . . . . . . . . . . 1 . EXPLORE 1 | . . . . . . . . . . . . . . 1 . RETURN 1 | . . . . . . . . . . . . . . 1 . Ally Attacks 444 | . . . 2 . . . . . 20 13 265 46 33 65 . Total Damage 11293 | . . . 42 . . . . . 674 457 5561 1139 1101 2319 . Kills 81 | . . . 1 . . . . . 5 3 49 12 4 7 . Allies Corrupted 5 | . . . . . . . . . . . 1 . . 4 . Allies Melted . | . . . . . . . . . . . . . . . . Intel | -11 -10 -9 -9 -8 -7 -7 -7 -7 -6 -6 -6 -6 -6 -6 -5 ------- Run | Yrd Mat Mat Min Mat Fac Low Low Dat Pro Fac Ext Cet Arc Hub Fac Active Infowar (turns) 12713 | 50 946 3723 . 885 5084 655 488 89 531 262 . . . . . Optics 3464 | . . 3464 . . . . . . . . . . . . . Structural 6272 | . . . . 749 3498 655 488 89 531 262 . . . . . Seismic 5924 | 50 946 259 . 837 3832 . . . . . . . . . . Jamming 446 | . . . . . 446 . . . . . . . . . . Robot Analysis Total 1 | . . . . . 1 . . . . . . . . . . Derelict Logs Recovered 6 | . . . 2 . . 1 1 . 2 . . . . . . Drone Launches 2 | . . . . . . . . . . . . . . 2 . Drone Recoveries . | . . . . . . . . . . . . . . . . Exploration | -11 -10 -9 -9 -8 -7 -7 -7 -7 -6 -6 -6 -6 -6 -6 -5 ------------- Run | Yrd Mat Mat Min Mat Fac Low Low Dat Pro Fac Ext Cet Arc Hub Fac Turns Passed 23587 | 169 1201 4158 2615 886 5228 655 488 89 531 755 2824 663 232 2465 628 Spaces Moved 11406 | 70 554 1498 1040 314 2804 550 393 78 423 525 1554 301 124 890 288 Core 4 | 3 . . . . . . . . . . . . . . 1 Treads 6149 | 67 554 1498 1040 314 1288 . . . . . . 87 124 890 287 Legs . | . . . . . . . . . . . . . . . . Wheels 5253 | . . . . . 1516 550 393 78 423 525 1554 214 . . . Hover . | . . . . . . . . . . . . . . . . Flight . | . . . . . . . . . . . . . . . . Fastest Speed 50 | 50 160 160 240 155 115 115 115 115 115 115 115 130 160 160 160 Average Speed 159 | 155 160 239 240 159 138 115 115 115 115 115 125 143 160 160 164 Slowest Speed 1450 | 160 160 240 240 160 320 115 115 115 115 115 175 240 160 240 1450 Overloaded Moves . | . . . . . . . . . . . . . . . . Propulsion Burnouts . | . . . . . . . . . . . . . . . . Robots Hopped . | . . . . . . . . . . . . . . . . Potential Cave-ins . | . . . . . . . . . . . . . . . . Cave-ins Triggered . | . . . . . . . . . . . . . . . . Exploration Rate (%) 62 | 5 90 95 99 26 59 79 66 68 66 9 97 69 86 79 8 Regions Visited 15 Branch Regions 9 Pre-discovered Areas 3 | . . . 1 . . . 1 1 . . . . . . . Known Exits Taken 4 | . . . 1 1 . . . . 1 . . . . 1 . Unknown Exits Taken 11 | 1 1 1 . . 1 1 1 1 . 1 1 1 1 . . Scrap Searched 10 | . . . 4 . . 1 3 . 2 . . . . . . Spaces Dug 30 | . . 4 15 7 3 1 . . . . . . . . . Terrain Destroyed 472 | . . 32 15 26 91 8 15 . 3 28 25 4 . 210 15 Melee . | . . . . . . . . . . . . . . . . Projectile 131 | . . 6 . 10 21 8 15 . 3 9 25 4 . 30 . AOE 341 | . . 26 15 16 70 . . . . 19 . . . 180 15 Terrain Rammed . | . . . . . . . . . . . . . . . . Walls Destroyed . | . . . . . . . . . . . . . . . . Machines Disabled . | . . . . . . . . . . . . . . . . Actions | -11 -10 -9 -9 -8 -7 -7 -7 -7 -6 -6 -6 -6 -6 -6 -5 --------- Run | Yrd Mat Mat Min Mat Fac Low Low Dat Pro Fac Ext Cet Arc Hub Fac Total 15075 | 97 753 1853 1101 573 3730 562 408 77 452 622 2191 505 150 1606 395 Wait 1876 | . 89 119 4 145 510 5 1 . 18 54 259 139 22 457 54 Move 11391 | 69 553 1497 1039 313 2803 549 392 77 422 524 1553 300 123 889 288 Hop . | . . . . . . . . . . . . . . . . Pick Up 199 | 6 21 32 9 10 44 . 1 . 1 5 31 8 . 25 6 Fast Attach 64 | 7 3 6 . 2 18 . 2 . . 1 9 6 . 9 1 Attach 68 | . 4 4 1 6 21 . 1 . . 3 2 2 . 16 8 Detach 10 | . . 1 . . 4 . . . . 1 2 1 . 1 . Swap 193 | . 6 25 6 15 50 2 . . 2 2 35 16 . 26 8 Drop 230 | . 15 45 10 13 56 1 2 . 2 6 34 19 . 20 7 Fire 876 | 15 62 124 32 69 208 5 9 . 7 26 115 14 5 162 23 Melee . | . . . . . . . . . . . . . . . . Ram . | . . . . . . . . . . . . . . . . Kick . | . . . . . . . . . . . . . . . . Crush 1 | . . . . . . . . . . . . . . 1 . Escape Stasis 56 | . . . . . 16 . . . . . 40 . . . . Rewire 111 | . . . . . . . . . . . 111 . . . . Trap . | . . . . . . . . . . . . . . . . Miscellaneous . | . . . . . . . . . . . . . . . . Route ------- -11/Scrapyard -10/Materials (discovered 6 exits: *Mat x3 / [*Min x2] / [*Sub]) -9/Materials (discovered 6 exits: *Mat x3 / *Min x2 / [*Sto]) -9/Mines (discovered 2 exits: *Mat x2) -8/Materials -7/Factory (discovered 4 exits: *Fac x2 / [*Low x2]) -7/Lower Caves -7/Lower Caves (discovered 2 exits: *Fac / *Dat) -7/Data Miner -6/Proximity Caves -6/Factory (discovered 3 exits: *Fac / *Low / *Ext) -6/Extension (discovered 2 exits: *Fac / *Cet) -6/Cetus (discovered 2 exits: *Fac / *Arc) -6/Archives (discovered 3 exits: *Fac / *Hub x2) -6/Hub_04(d) (discovered 3 exits: *Fac x3) -5/Factory (discovered 2 exits: Upp x2) History --------- Turn | Location | Event 44 | -11/Scrapyard | Discovered new exit (range 14) 170 | -11/Scrapyard | Entered Materials 171 | -10/Materials | Met a group of wandering Federalists 300 | -10/Materials | Discovered new exit (range 7) 304 | -10/Materials | Build established: Mutant 373 | -10/Materials | Discovered new exit (range 9) 386 | -10/Materials | Discovered new exit (range 10) 713 | -10/Materials | Discovered new exit (range 5) 1113 | -10/Materials | Discovered new exit (range 15) 1256 | -10/Materials | Discovered new exit (range 13) 1301 | -10/Materials | Repaired Lgt. Treads 1330 | -10/Materials | Repaired Lgt. Treads 1357 | -10/Materials | Repaired Lgt. Cannon 1371 | -10/Materials | Entered another Materials area 1371 | -9/Materials | Evolved 2 slots: Utility x2 1730 | -9/Materials | Discovered new exit (range 15) 2077 | -9/Materials | Discovered new exit (range 8) 2533 | -9/Materials | Discovered new exit (range 15) 3229 | -9/Materials | Discovered new exit (range 6) 4045 | -9/Materials | Discovered new exit (range 13) 4130 | -9/Materials | Discovered new exit (range 15) 5240 | -9/Materials | Repaired Cld. Ion Engine 5529 | -9/Materials | Entered Mines 5628 | -9/Mines | Learned location of Storage (-9) 5635 | -9/Mines | Received a Rocket Launcher from a helpful Derelict 5705 | -9/Mines | Discovered new exit (range 15) 6130 | -9/Mines | Received a Mining Laser from a helpful Derelict 6503 | -9/Mines | Discovered new exit (range 12) 6676 | -9/Mines | Met a Derelict who couldn't figure out how to use a Trap Extractor 7214 | -9/Mines | Identified exit to Materials 8144 | -9/Mines | Entered Materials 8144 | -8/Materials | Evolved 2 slots: Propulsion x1, Utility x1 8145 | -8/Materials | Identified exit to Factory 8432 | -8/Materials | Garrison activated, responded to threat 8990 | -8/Materials | Build established: Scavenger-Mutant 9030 | -8/Materials | Entered Factory 9030 | -7/Factory | Evolved 2 slots: Utility x1, Weapon x1 9319 | -7/Factory | Build established: Scavenger-Skirmisher 9832 | -7/Factory | Fabricated HERF Cannon (x2) 10379 | -7/Factory | Discovered new exit (range 7) 10440 | -7/Factory | Identified exit to Factory 10540 | -7/Factory | Garrison activated, responded to threat 10742 | -7/Factory | Discovered exit to Factory (range 14) 10985 | -7/Factory | Build established: Infiltrator-Skirmisher 11462 | -7/Factory | Fabricated Thermic Laser? 11542 | -7/Factory | Build established: Scavenger-Skirmisher 11894 | -7/Factory | Discovered new exit (range 15) 12191 | -7/Factory | Repaired Broken Thermic Laser 12571 | -7/Factory | Build established: Gunner 12658 | -7/Factory | Repaired Thermic Laser 12790 | -7/Factory | Fabricated Thermic Laser? 12950 | -7/Factory | Build established: Tank 13030 | -7/Factory | First assault squad dispatched 13705 | -7/Factory | Garrison activated, responded to threat 13708 | -7/Factory | Core integrity fell below 50% 13750 | -7/Factory | Lost 3 parts (2u1w) 13812 | -7/Factory | Destroyed 12 combat bots 13916 | -7/Factory | Discovered new exit (range 11) 14145 | -7/Factory | Build established: Infiltrator-Gunner 14258 | -7/Factory | Entered Lower Caves 14281 | -7/Lower Caves | Learned 8 Factory zone layouts 14431 | -7/Lower Caves | Attracted the attention of an 0b10 checkpoint 14476 | -7/Lower Caves | Build established: Scavenger-Gunner 14843 | -7/Lower Caves | Discovered new exit (range 15) 14913 | -7/Lower Caves | Entered another Lower Caves area 14928 | -7/Lower Caves | Discovered exit to Factory (range 12) 14929 | -7/Lower Caves | Encountered a Warlord checkpoint 15263 | -7/Lower Caves | Entered a destroyed Warlord outpost 15387 | -7/Lower Caves | Discovered new exit (range 11) 15401 | -7/Lower Caves | Entered Data Miner 15401 | -7/Data Miner | Discovered new exit (range 6) 15423 | -7/Data Miner | Met Data Miner 15443 | -7/Data Miner | Learned location of Section 7 (-2) 15443 | -7/Data Miner | Acquired the access code to Warlord's prototype stash 15461 | -7/Data Miner | Received God Mode back door access code from Data Miner 15490 | -7/Data Miner | Entered Proximity Caves 15584 | -6/Proximity Caves | Escorted by Enhanced Grunt 15589 | -6/Proximity Caves | Spotter reported a threat 15612 | -6/Proximity Caves | Attracted the attention of an 0b10 checkpoint 15756 | -6/Proximity Caves | Core integrity fell below 20% 15767 | -6/Proximity Caves | Learned Factory emergency access door positions 15979 | -6/Proximity Caves | Discovered exit to Factory (range 9) 16004 | -6/Proximity Caves | Learned Factory garrison access intel 16021 | -6/Proximity Caves | Entered Factory 16021 | -6/Factory | Accompanied by 1 ally 16021 | -6/Factory | Evolved 2 slots: Propulsion x1, Utility x1 16024 | -6/Factory | Loaded intel: 4 garrison access locations 16156 | -6/Factory | Discovered new exit (range 3) 16273 | -6/Factory | Fabricated Lgt. Regenerative Plating (x1) 16324 | -6/Factory | Build established: Tank 16342 | -6/Factory | Fabricated Lgt. Regenerative Plating (x1) 16425 | -6/Factory | Discovered new exit (range 4) 16550 | -6/Factory | Identified exit to Lower Caves 16579 | -6/Factory | Identified exit to Factory 16717 | -6/Factory | Discovered new exit (range 15) 16776 | -6/Factory | Entered Extension 16963 | -6/Extension | Rescued A7 16983 | -6/Extension | Found Hvy. Reactive Plating 17238 | -6/Extension | Rescued a captive Derelict 17238 | -6/Extension | Rescued a captive Derelict 17442 | -6/Extension | Rescued a captive Derelict 17443 | -6/Extension | Rescued a captive Derelict 17486 | -6/Extension | Rescued a captive Derelict 17487 | -6/Extension | Rescued a captive Derelict 17876 | -6/Extension | Disrupted transfer network 17924 | -6/Extension | Build established: Commander-Tank 18037 | -6/Extension | Found Hvy. Reactive Plating 18451 | -6/Extension | Spotted B-75 Beast 18462 | -6/Extension | Allies destroyed B-75 Beast 18469 | -6/Extension | Spotted B-75 Beast 18481 | -6/Extension | Allies destroyed B-75 Beast 18541 | -6/Extension | Rescued a captive Derelict 18610 | -6/Extension | Rescued a captive Derelict 18993 | -6/Extension | Rescued a captive Derelict 18993 | -6/Extension | Rescued a captive Derelict 19016 | -6/Extension | Rescued a captive Derelict 19226 | -6/Extension | First assault squad dispatched 19252 | -6/Extension | Incoming assault squad redirected 19349 | -6/Extension | Lost 13 allies 19555 | -6/Extension | Discovered new exit (range 15) 19557 | -6/Extension | Discovered exit to Factory (range 15) 19587 | -6/Extension | Disrupted transfer network 19600 | -6/Extension | Entered Cetus 19600 | -6/Cetus | Accompanied by 4 allies (A7) 19605 | -6/Cetus | Acquired a Cetus Manufacturing Module code from A7 19617 | -6/Cetus | Spotted Cetus Guard 19617 | -6/Cetus | Spotted Cetus Guard 19619 | -6/Cetus | Lost 4 allies 19621 | -6/Cetus | Allies destroyed Cetus Guard 19622 | -6/Cetus | Spotted Cetus Guard 19623 | -6/Cetus | Spotted Cetus Guard 19625 | -6/Cetus | Allies destroyed Cetus Guard 19628 | -6/Cetus | Allies destroyed Cetus Guard 19631 | -6/Cetus | Allies destroyed Cetus Guard 19734 | -6/Cetus | Started Cetus Manufacturing Module 19759 | -6/Cetus | Manufactured an Enhanced Grunt 19784 | -6/Cetus | Manufactured an Enhanced Grunt 19809 | -6/Cetus | Manufactured an Enhanced Grunt 19834 | -6/Cetus | Manufactured an Enhanced Grunt 19859 | -6/Cetus | Manufactured an Enhanced Grunt 19999 | -6/Cetus | Discovered new exit (range 15) 20023 | -6/Cetus | Spotted Cetus Guard 20023 | -6/Cetus | Spotted Cetus Guard 20026 | -6/Cetus | Spotted Cetus Guard 20029 | -6/Cetus | Spotted Cetus Guard 20032 | -6/Cetus | Allies destroyed Cetus Guard 20038 | -6/Cetus | Allies destroyed Cetus Guard 20042 | -6/Cetus | Allies destroyed Cetus Guard 20045 | -6/Cetus | Allies destroyed Cetus Guard 20057 | -6/Cetus | Discovered exit to Factory (range 15) 20075 | -6/Cetus | Met Revision 17 20263 | -6/Cetus | Entered Archives 20263 | -6/Archives | Accompanied by 9 allies (A7) 20330 | -6/Archives | Unable to access archive contents 20333 | -6/Archives | Discovered new exit (range 16) 20348 | -6/Archives | Unable to access archive contents 20351 | -6/Archives | Discovered new exit (range 16) 20364 | -6/Archives | Unable to access archive contents 20367 | -6/Archives | Discovered exit to Factory (range 16) 20495 | -6/Archives | Entered Hub_04(d) 20495 | -6/Hub_04(d) | Accompanied by 7 allies 20606 | -6/Hub_04(d) | Build established: Scavenger-Tank 20721 | -6/Hub_04(d) | Network Hub disabled 20747 | -6/Hub_04(d) | Spotted Lightning 20753 | -6/Hub_04(d) | Spotted Lightning 20785 | -6/Hub_04(d) | Allies destroyed Lightning 20785 | -6/Hub_04(d) | Spotted Lightning 20805 | -6/Hub_04(d) | System corruption reached 10% 20808 | -6/Hub_04(d) | Destroyed Lightning 20818 | -6/Hub_04(d) | Destroyed Lightning 20829 | -6/Hub_04(d) | Lost 5 allies 20830 | -6/Hub_04(d) | Found Prototype Device 20830 | -6/Hub_04(d) | Identified Exp. Thermal Shield 20845 | -6/Hub_04(d) | Found Prototype Processor 20845 | -6/Hub_04(d) | Identified Exp. Targeting Computer 20885 | -6/Hub_04(d) | Found Prototype Energy Cannon 20885 | -6/Hub_04(d) | Identified EMDS 20899 | -6/Hub_04(d) | Found Prototype Device 20899 | -6/Hub_04(d) | Identified Exp. EM Shield 20921 | -6/Hub_04(d) | Discovered exit to Factory (range 14) 21125 | -6/Hub_04(d) | Spotted Lightning 21127 | -6/Hub_04(d) | Spotted Lightning 21499 | -6/Hub_04(d) | Spotted Lightning 21527 | -6/Hub_04(d) | Destroyed Lightning 21537 | -6/Hub_04(d) | Destroyed Lightning 21568 | -6/Hub_04(d) | Found EMDS 21621 | -6/Hub_04(d) | Destroyed Lightning 21665 | -6/Hub_04(d) | Found Prototype Device 21665 | -6/Hub_04(d) | Identified Exp. Phase Shifter 21705 | -6/Hub_04(d) | Spotted B-75 Beast 21729 | -6/Hub_04(d) | Destroyed B-75 Beast 22039 | -6/Hub_04(d) | Core integrity fell below 50% 22056 | -6/Hub_04(d) | Spotted Lightning 22056 | -6/Hub_04(d) | Spotted Lightning 22058 | -6/Hub_04(d) | Spotted Lightning 22068 | -6/Hub_04(d) | System corruption reached 30% 22096 | -6/Hub_04(d) | Destroyed Lightning 22114 | -6/Hub_04(d) | Destroyed Lightning 22145 | -6/Hub_04(d) | Destroyed Lightning 22161 | -6/Hub_04(d) | Found EMDS 22166 | -6/Hub_04(d) | Found Exp. Targeting Computer 22182 | -6/Hub_04(d) | Found Exp. Targeting Computer 22264 | -6/Hub_04(d) | Destroyed 7 combat bots 22335 | -6/Hub_04(d) | Found Hvy. Reflective Plating 22587 | -6/Hub_04(d) | Destroyed 7 combat bots 22595 | -6/Hub_04(d) | First assault squad dispatched 22611 | -6/Hub_04(d) | Incoming assault squad redirected 22617 | -6/Hub_04(d) | Discovered exit to Factory (range 12) 22694 | -6/Hub_04(d) | Discovered exit to Factory (range 16) 22960 | -6/Hub_04(d) | Entered Factory 22960 | -5/Factory | Evolved 2 slots: Utility x1, Weapon x1 23412 | -5/Factory | Incoming investigation squad redirected 23463 | -5/Factory | Identified exit to Upper Caves 23492 | -5/Factory | Cargo convoy interrupted 23551 | -5/Factory | System corruption reached 10% 23576 | -5/Factory | Core integrity fell below 50% 23582 | -5/Factory | Core integrity fell below 20% 23588 | -5/Factory | Destroyed by P-70 Sage with High-powered Shock Rifle Last Messages --------------- 23562_ Destroyed Lgt. Fission Core. 23563_ Enh. Force Rifle destroyed. 23563_ K-01 Serf collects debris. 23563_ R-10 Processor collects Imp. Heat Sink. 23564_ P-70 Sage resets P-70 Sage, system corruption cleaned. 23565_ F-cell Engine destroyed. 23565_ Cryofiber Web destroyed. 23565_ P-70 Sage destroyed. 23566_ Penetrated by Slug. 23567_ K-01 Serf collects debris. 23571_ Penetrated by Slug. 23572_ Hvy. Machine Gun destroyed. 23573_ K-01 Serf collects debris. 23576_ System corrupted: Heat flow error (+196). 23577_ K-01 Serf collects debris. 23579_ Penetrated by Slug. 23580_ K-01 Serf collects debris. 23585_ Penetrated by Slug. 23587_ K-01 Serf collects debris. Map ----- +----------------------------------------------------+ | ????????# #??? ## +??????#T ##??????????? | | ????????# #??? !! ## #????? ?????????? | | ?????#### #### !! ## ###### ?????????? | | ?????# + ! # ????????? | | ?????# # # ????????? | | ?????# # + ????????? | | ?????+ # # ???????? | | ?????# """""# ???????? | | ?????# #??????? | | ?????# % ?????? | | ?????# ! %!!! #????? | | ?????# %! k #????? | | ?????# ! #????? | | ?????# ?????? | | ????## ?????? | | ??" + ??????? | | ??" ## ????????? | | ?????# ##+#######? | | ??#### %! #?# #? | | """" !!%*| #?# #? | | " =#p![[ ### #? | | """" + =![ip%! + #? | | ? """" #### !* !h!===! # #? | | ? """" !#??# * #*[!*! # #? | | """" #??# ** #!=*| # #? | | ? ?""" #??# ! # @ # #? | | ?? ?""" ??# # ########### | | ???? ?? ???# # + """ # | | ????????? ???########p # "Y" # | | ?????????? ?########## p # " " # | | ?????????? ???# + # # | | ??????????????# "" #### + """" # | | ??????????????# """ #??# # """" # | | ??????????????# "T / #??# # """" # | | ??????????????+ """ #??# # """" # | | ??????????????# "" #??# # # | | ??????????????# #??# ^^ ^^^ #####+#### | | ??????????????# #??# #???# #??? | | ??????????????# #??# ########## #??? | | ??????????????####+#####??# ????# # #??? | | ??????????????????????????? ????# # #??? | | ????????????????????????????????### + #??? | | ???????????????????????????????? + # #??? | | ????????????????????????????????# # # #??? | | ????????????????????????????????# ###### #??? | | ???????????????????????????????## ##???# #??? | | ???????????????????????????????# ##### #??? | | ???????????????????????????????# " #??? | | ???????????????????????????????# #######??? | | ???????????????????????????????## ##????????? | +----------------------------------------------------+ Best States ------------- Heat Dissipation 144 Energy Generation 31 Energy Capacity 850 Matter Stores 300 Matter Capacity 300 Sight Range 18 Terrain Scan Density 10 Jamming Range 12 Power Amplification 30 Base Temperature (-) 100 Armor Coverage 750 Resistance: KI 40 Resistance: TH 10 Resistance: EM 75 Weapon Shielding 33 Evasion (%) 40 Targeting Accuracy 12 Recoil Reduction 4 Energy Filtering 30 Particle Charging 15 Kinecelleration 30 Item Schematics ----------------- Hvy. Armor Plating | -9/Materials | Scanalyzed Thermic Laser | -7/Factory | Scanalyzed Cryofiber Web | -7/Factory | Scanalyzed Combat Drone Bay | -7/Data Miner | Free Lgt. Regenerative Plating | -7/Data Miner | Free Biomechanical Wings | -7/Data Miner | Free Gravity Neutralizer | -7/Data Miner | Free Imp. Heavy Laser | -7/Data Miner | Free Thunder Leg | -7/Data Miner | Free Adv. Salvage Targeting Computer | -7/Data Miner | Free Wave Gun | -7/Data Miner | Free Power Amplifier | -7/Data Miner | Free Linear Gravjet | -7/Data Miner | Free Imp. Thermal Generator | -6/Hub_04(d) | Hacked Robot Schematics ------------------ R-10 Processor | -7/Data Miner | Free E-15 Imp | -7/Data Miner | Free A-15 Conveyor | -7/Data Miner | Free O-24 Administrator | -7/Data Miner | Free Fabricated ------------ HERF Cannon | x2 | -7/Factory | Preloaded Thermic Laser | x2 | -7/Factory Thermic Laser | x2 | -7/Factory Lgt. Regenerative Plating | x1 | -6/Factory Lgt. Regenerative Plating | x1 | -6/Factory Repaired ---------- Lgt. Treads | 35% | -10/Materials Lgt. Treads | 75% | -10/Materials Lgt. Cannon | 76% | -10/Materials Cld. Ion Engine | 77% | -9/Materials Thermic Laser | 6% | -7/Factory | Broken Thermic Laser | 18% | -7/Factory Alien Tech Used ----------------- None Achievements -------------- Generalissimo We Are Legion Challenges ------------ None Game ------ Seed LayeredHelicalCyclogen Manual? 0 Play Time 04:19:47 Cumulative 133.2 hours Start 2025.06.08 @ 20:58:51 End 2025.06.09 @ 22:05:09 Sessions 5 Manual Loads 0 Difficulty Rogue Special Mode None Game No. 94 Rogue 94 Adventurer 0 Explorer 0 Win Type - Total 1 Types 1/0/0/0/0/0/0/0/0/0 Lore% 43 Gallery% 48 Achievement% 43 Wizard Run 0 Options --------- Layout 1 ASCII 0 Keyboard 0 Movement Mouse Keybinds 0 Fullscreen 1 Font 24/Smallcaps Map View 50x35 Zoom Use 0% Tactical HUD 1 Map Filters NONE Filters NONE Steam 1 RUN: fdecf9cf-488c-4e17-997a-e036b2a91c2e